[Event "*** SCC Grand Prix: Titled Tuesday Blitz"]
[Site "Chess.com"]
[Date "2020.09.08"]
[Round "9"]
[White "artichaud"]
[Black "RamyresCoelho"]
[Result "1-0"]
[WhiteElo "2211"]
[BlackElo "1791"]
[TimeControl "180+1"]
[EndTime "11:46:09 PDT"]
[Termination "artichaud won by checkmate"]

1. e4 {[%clk 0:02:59.9]} 1... c5 {[%clk 0:02:59.6]} 2. Nf3 {[%clk 0:02:59.2]}
2... d6 {[%clk 0:02:58.9]} 3. d4 {[%clk 0:02:57.9]} 3... cxd4 {[%clk 0:02:59.8]}
4. Nxd4 {[%clk 0:02:58.4]} 4... Nf6 {[%clk 0:03:00.2]} 5. Nc3 {[%clk 0:02:57.1]}
5... a6 {[%clk 0:03:00.4]} 6. h3 {[%clk 0:02:56.6]} 6... e6 {[%clk 0:03:00.1]}
7. g4 {[%clk 0:02:54.5]} 7... h6 {[%clk 0:02:59.8]} 8. Bg2 {[%clk 0:02:54.2]}
8... Qc7 {[%clk 0:02:56.7]} 9. O-O {[%clk 0:02:52.1]} 9... Nc6 {[%clk
0:02:55.9]} 10. Be3 {[%clk 0:02:50.3]} 10... Be7 {[%clk 0:02:53.3]} 11. Qe2
{[%clk 0:02:45.6]} 11... Rb8 {[%clk 0:02:52.8]} 12. Rad1 {[%clk 0:02:33.6]}
12... Na5 {[%clk 0:02:50.9]} 13. a4 {[%clk 0:02:25.2]} 13... Nc4 {[%clk
0:02:49.4]} 14. Bc1 {[%clk 0:02:25.7]} 14... Bd7 {[%clk 0:02:42]} 15. f4 {[%clk
0:02:22.3]} 15... b5 {[%clk 0:02:38.5]} 16. axb5 {[%clk 0:02:16.6]} 16... axb5
{[%clk 0:02:39.4]} 17. Rfe1 {[%clk 0:02:04.8]} 17... e5 {[%clk 0:02:30.4]} 18.
Nf5 {[%clk 0:02:02.9]} 18... Bxf5 {[%clk 0:02:30.1]} 19. exf5 {[%clk 0:01:59]}
19... Qc5+ {[%clk 0:02:16.7]} 20. Kh1 {[%clk 0:01:58.2]} 20... O-O {[%clk
0:02:13.8]} 21. Nd5 {[%clk 0:01:50.9]} 21... Nxd5 {[%clk 0:02:08.7]} 22. Rxd5
{[%clk 0:01:50]} 22... Qc7 {[%clk 0:02:07.1]} 23. fxe5 {[%clk 0:01:44.7]} 23...
Nxe5 {[%clk 0:02:04.7]} 24. Bf4 {[%clk 0:01:40]} 24... Rfc8 {[%clk 0:01:57.8]}
25. c3 {[%clk 0:01:37.3]} 25... Bf6 {[%clk 0:01:55.3]} 26. Rxb5 {[%clk 0:01:33]}
26... Rxb5 {[%clk 0:01:55.8]} 27. Qxb5 {[%clk 0:01:33.5]} 27... Rb8 {[%clk
0:01:53.9]} 28. Qe2 {[%clk 0:01:33.2]} 28... Nc4 {[%clk 0:01:47.7]} 29. Bd5
{[%clk 0:01:08.3]} 29... Nxb2 {[%clk 0:01:36.6]} 30. c4 {[%clk 0:01:05.4]} 30...
Na4 {[%clk 0:01:30.7]} 31. Qh2 {[%clk 0:00:53.6]} 31... Rb2 {[%clk 0:01:18.5]}
32. Qg3 {[%clk 0:00:47]} 32... Qd8 {[%clk 0:00:56.4]} 33. Qe3 {[%clk 0:00:37.7]}
33... Nc5 {[%clk 0:00:43.6]} 34. Qe8+ {[%clk 0:00:35]} 34... Qxe8 {[%clk
0:00:43.6]} 35. Rxe8+ {[%clk 0:00:35.7]} 35... Kh7 {[%clk 0:00:44.5]} 36. Bxf7
{[%clk 0:00:34.7]} 36... Rb1+ {[%clk 0:00:43.3]} 37. Kg2 {[%clk 0:00:34.2]}
37... Rb3 {[%clk 0:00:43.3]} 38. Bg6# {[%clk 0:00:33]} 1-0

[Event "*** SCC Grand Prix: Titled Tuesday Blitz"]
[Site "Chess.com"]
[Date "2020.09.08"]
[Round "9"]
[White "jhonnyuribe"]
[Black "BogdanDeac"]
[Result "1-0"]
[WhiteElo "2556"]
[BlackElo "2897"]
[TimeControl "180+1"]
[EndTime "11:46:13 PDT"]
[Termination "jhonnyuribe won on time"]

1. d4 {[%clk 0:03:00.9]} 1... g6 {[%clk 0:02:58.7]} 2. Nf3 {[%clk 0:03:01.8]}
2... Bg7 {[%clk 0:02:58]} 3. e3 {[%clk 0:03:02.7]} 3... Nf6 {[%clk 0:02:57.3]}
4. Bd3 {[%clk 0:03:03.6]} 4... c5 {[%clk 0:02:57.4]} 5. Nbd2 {[%clk 0:03:04.5]}
5... O-O {[%clk 0:02:57.3]} 6. c3 {[%clk 0:03:02.2]} 6... d5 {[%clk 0:02:56.2]}
7. dxc5 {[%clk 0:03:00.8]} 7... a5 {[%clk 0:02:55.6]} 8. O-O {[%clk 0:02:56.8]}
8... Nfd7 {[%clk 0:02:54.2]} 9. e4 {[%clk 0:02:47.1]} 9... Nxc5 {[%clk
0:02:53.7]} 10. Bc2 {[%clk 0:02:46.8]} 10... Be6 {[%clk 0:02:36.2]} 11. Qe2
{[%clk 0:02:41]} 11... Nc6 {[%clk 0:02:33.1]} 12. Rd1 {[%clk 0:02:38.9]} 12...
d4 {[%clk 0:02:32.5]} 13. cxd4 {[%clk 0:02:30.4]} 13... Nxd4 {[%clk 0:02:32]}
14. Nxd4 {[%clk 0:02:29.9]} 14... Qxd4 {[%clk 0:02:31.9]} 15. Nf3 {[%clk
0:02:28.7]} 15... Qc4 {[%clk 0:02:27.5]} 16. Qxc4 {[%clk 0:02:24.6]} 16... Bxc4
{[%clk 0:02:28.4]} 17. Be3 {[%clk 0:02:22.7]} 17... Rfc8 {[%clk 0:02:27.2]} 18.
Bd4 {[%clk 0:02:19.9]} 18... Be2 {[%clk 0:02:26.7]} 19. Rd2 {[%clk 0:02:17.5]}
19... Bxf3 {[%clk 0:02:25.2]} 20. gxf3 {[%clk 0:02:18]} 20... Bxd4 {[%clk
0:01:59.6]} 21. Rxd4 {[%clk 0:02:17.5]} 21... Ne6 {[%clk 0:02:00.2]} 22. Rd2
{[%clk 0:02:15.7]} 22... Nf4 {[%clk 0:02:00.4]} 23. Rad1 {[%clk 0:02:12.9]}
23... Rc5 {[%clk 0:01:58.3]} 24. Bb3 {[%clk 0:02:07.8]} 24... Kg7 {[%clk
0:01:52.8]} 25. Rd7 {[%clk 0:02:03.7]} 25... a4 {[%clk 0:01:52.2]} 26. Bd5
{[%clk 0:02:00.6]} 26... e6 {[%clk 0:01:40.6]} 27. b4 {[%clk 0:01:51.9]} 27...
Rc2 {[%clk 0:01:14.2]} 28. Bxb7 {[%clk 0:01:49.3]} 28... Rb8 {[%clk 0:01:13.7]}
29. Ra1 {[%clk 0:01:37.4]} 29... a3 {[%clk 0:01:05.2]} 30. b5 {[%clk 0:01:34.7]}
30... Ne2+ {[%clk 0:01:01.1]} 31. Kg2 {[%clk 0:01:31.5]} 31... Nc3 {[%clk
0:01:01]} 32. Ba6 {[%clk 0:01:28.6]} 32... Nxb5 {[%clk 0:00:52.7]} 33. Rb1
{[%clk 0:01:27.2]} 33... Rb2 {[%clk 0:00:46.9]} 34. Rc1 {[%clk 0:01:27.5]} 34...
Rxa2 {[%clk 0:00:40.5]} 35. Bxb5 {[%clk 0:01:27.2]} 35... Rxb5 {[%clk 0:00:40]}
36. Rcc7 {[%clk 0:01:27.9]} 36... Rg5+ {[%clk 0:00:15.5]} 37. Kf1 {[%clk
0:01:15.2]} 37... Rb5 {[%clk 0:00:03.6]} 38. Rxf7+ {[%clk 0:01:14.3]} 38... Kh6
{[%clk 0:00:04.2]} 39. h4 {[%clk 0:01:11.5]} 39... g5 {[%clk 0:00:03.6]} 40.
Rf6+ {[%clk 0:01:09.2]} 1-0

[Event "*** SCC Grand Prix: Titled Tuesday Blitz"]
[Site "Chess.com"]
[Date "2020.09.08"]
[Round "9"]
[White "IANOV0007"]
[Black "Kaslask"]
[Result "0-1"]
[WhiteElo "2408"]
[BlackElo "2316"]
[TimeControl "180+1"]
[EndTime "11:46:14 PDT"]
[Termination "Kaslask won on time"]

1. Nf3 {[%clk 0:03:00.9]} 1... Nf6 {[%clk 0:02:59.4]} 2. g3 {[%clk 0:03:00]}
2... b6 {[%clk 0:02:56.8]} 3. b3 {[%clk 0:02:59.5]} 3... Bb7 {[%clk 0:02:56]} 4.
Bg2 {[%clk 0:02:59.4]} 4... g6 {[%clk 0:02:53.8]} 5. Bb2 {[%clk 0:02:59.3]} 5...
Bg7 {[%clk 0:02:53.7]} 6. c4 {[%clk 0:02:59.3]} 6... c5 {[%clk 0:02:52.7]} 7.
O-O {[%clk 0:02:59]} 7... O-O {[%clk 0:02:52.2]} 8. Nc3 {[%clk 0:02:59.1]} 8...
d6 {[%clk 0:02:50.1]} 9. d4 {[%clk 0:02:57.6]} 9... cxd4 {[%clk 0:02:49.1]} 10.
Qxd4 {[%clk 0:02:57]} 10... Nbd7 {[%clk 0:02:43.7]} 11. Rfd1 {[%clk 0:02:52.3]}
11... a6 {[%clk 0:02:42.9]} 12. Rac1 {[%clk 0:02:49.6]} 12... Rc8 {[%clk
0:02:42.5]} 13. Nd5 {[%clk 0:02:39.6]} 13... Rc5 {[%clk 0:02:19.7]} 14. e4
{[%clk 0:02:32.9]} 14... Re8 {[%clk 0:02:07]} 15. Ba1 {[%clk 0:02:19.9]} 15...
Qb8 {[%clk 0:01:57.6]} 16. Qe3 {[%clk 0:02:14.5]} 16... b5 {[%clk 0:01:55.9]}
17. Bd4 {[%clk 0:02:08.6]} 17... Rcc8 {[%clk 0:01:53.6]} 18. cxb5 {[%clk
0:01:47.4]} 18... axb5 {[%clk 0:01:52.5]} 19. Rxc8 {[%clk 0:01:45.3]} 19... Qxc8
{[%clk 0:01:49.9]} 20. Rc1 {[%clk 0:01:43.2]} 20... Qb8 {[%clk 0:01:49.4]} 21.
Nxf6+ {[%clk 0:01:31]} 21... Nxf6 {[%clk 0:01:46.6]} 22. Nd2 {[%clk 0:01:20]}
22... Qa8 {[%clk 0:01:44.8]} 23. Rc2 {[%clk 0:01:11.1]} 23... Rc8 {[%clk
0:01:41.5]} 24. Qd3 {[%clk 0:01:09.3]} 24... Nd7 {[%clk 0:01:34.6]} 25. Bxg7
{[%clk 0:01:07.3]} 25... Kxg7 {[%clk 0:01:34.4]} 26. Rxc8 {[%clk 0:01:06.4]}
26... Qxc8 {[%clk 0:01:30.6]} 27. Qxb5 {[%clk 0:00:58.3]} 27... Qc1+ {[%clk
0:01:27.7]} 28. Nf1 {[%clk 0:00:57.1]} 28... Bc6 {[%clk 0:01:25.5]} 29. Qe2
{[%clk 0:00:49]} 29... Nc5 {[%clk 0:01:21.7]} 30. Qd2 {[%clk 0:00:45.7]} 30...
Qa1 {[%clk 0:01:19.2]} 31. Qc2 {[%clk 0:00:40.8]} 31... Bb5 {[%clk 0:01:17.5]}
32. h4 {[%clk 0:00:25.9]} 32... Bd3 {[%clk 0:01:16.7]} 33. Qd2 {[%clk
0:00:23.8]} 33... Bxe4 {[%clk 0:01:12.9]} 34. b4 {[%clk 0:00:10.6]} 34... Bxg2
{[%clk 0:01:05.1]} 35. Kxg2 {[%clk 0:00:10.2]} 35... Ne4 {[%clk 0:01:04.9]} 36.
Qc2 {[%clk 0:00:04.2]} 36... d5 {[%clk 0:01:02.9]} 37. Ne3 {[%clk 0:00:03.3]}
37... Qe5 {[%clk 0:00:59]} 0-1

[Event "*** SCC Grand Prix: Titled Tuesday Blitz"]
[Site "Chess.com"]
[Date "2020.09.08"]
[Round "9"]
[White "ItsCheckM8Mate"]
[Black "anasta10"]
[Result "1-0"]
[WhiteElo "2335"]
[BlackElo "2435"]
[TimeControl "180+1"]
[EndTime "11:46:18 PDT"]
[Termination "ItsCheckM8Mate won by resignation"]

1. e4 {[%clk 0:03:00.9]} 1... e6 {[%clk 0:02:55.3]} 2. d4 {[%clk 0:02:59.6]}
2... d5 {[%clk 0:02:55.8]} 3. Nc3 {[%clk 0:03:00.3]} 3... Bb4 {[%clk 0:02:54.8]}
4. exd5 {[%clk 0:02:58.1]} 4... exd5 {[%clk 0:02:53.3]} 5. Bd3 {[%clk
0:02:57.2]} 5... Nc6 {[%clk 0:02:53.4]} 6. a3 {[%clk 0:02:55.8]} 6... Bxc3+
{[%clk 0:02:49.8]} 7. bxc3 {[%clk 0:02:55.4]} 7... Nge7 {[%clk 0:02:50.4]} 8.
Qf3 {[%clk 0:02:54]} 8... Be6 {[%clk 0:02:49.2]} 9. Ne2 {[%clk 0:02:52.5]} 9...
Qd7 {[%clk 0:02:48.7]} 10. h3 {[%clk 0:02:48.9]} 10... Bf5 {[%clk 0:02:48.3]}
11. O-O {[%clk 0:02:42.7]} 11... O-O {[%clk 0:02:44.1]} 12. Ng3 {[%clk 0:02:42]}
12... Bxd3 {[%clk 0:02:41.4]} 13. cxd3 {[%clk 0:02:42.9]} 13... Rae8 {[%clk
0:02:36.5]} 14. a4 {[%clk 0:02:38.4]} 14... f6 {[%clk 0:02:21.6]} 15. Ba3 {[%clk
0:02:29.7]} 15... Rf7 {[%clk 0:02:17.7]} 16. Rfe1 {[%clk 0:02:20.4]} 16... g6
{[%clk 0:01:25.4]} 17. h4 {[%clk 0:02:14]} 17... f5 {[%clk 0:01:23.5]} 18. h5
{[%clk 0:02:12.3]} 18... f4 {[%clk 0:01:23.2]} 19. Nf1 {[%clk 0:02:02.5]} 19...
g5 {[%clk 0:01:17.5]} 20. Nh2 {[%clk 0:01:59.8]} 20... Nf5 {[%clk 0:00:55.7]}
21. Rxe8+ {[%clk 0:01:52.1]} 21... Qxe8 {[%clk 0:00:55.9]} 22. Qxd5 {[%clk
0:01:51.8]} 22... Nce7 {[%clk 0:00:45.3]} 23. Qe6 {[%clk 0:01:31.9]} 23... Qc6
{[%clk 0:00:35.6]} 24. Re1 {[%clk 0:01:22]} 24... Qxe6 {[%clk 0:00:35.3]} 25.
Rxe6 {[%clk 0:01:21.5]} 25... Nd5 {[%clk 0:00:35.9]} 26. c4 {[%clk 0:01:10.9]}
26... Nc3 {[%clk 0:00:33.6]} 27. Ng4 {[%clk 0:01:07.8]} 27... Nxa4 {[%clk
0:00:09.7]} 28. h6 {[%clk 0:01:05]} 28... Rd7 {[%clk 0:00:05.3]} 29. Re5 {[%clk
0:00:45.9]} 29... Rf7 {[%clk 0:00:04]} 30. Re8+ {[%clk 0:00:45.1]} 1-0

[Event "*** SCC Grand Prix: Titled Tuesday Blitz"]
[Site "Chess.com"]
[Date "2020.09.08"]
[Round "9"]
[White "pastouche06"]
[Black "MariaFominykh"]
[Result "1-0"]
[WhiteElo "2485"]
[BlackElo "2345"]
[TimeControl "180+1"]
[EndTime "11:46:19 PDT"]
[Termination "pastouche06 won by checkmate"]

1. d4 {[%clk 0:02:53.7]} 1... Nf6 {[%clk 0:02:59.7]} 2. c4 {[%clk 0:02:52.8]}
2... g6 {[%clk 0:02:59]} 3. f3 {[%clk 0:02:52.1]} 3... c5 {[%clk 0:02:56.1]} 4.
d5 {[%clk 0:02:52]} 4... e6 {[%clk 0:02:56]} 5. e4 {[%clk 0:02:52.1]} 5... exd5
{[%clk 0:02:53.3]} 6. cxd5 {[%clk 0:02:53]} 6... d6 {[%clk 0:02:53.3]} 7. Ne2
{[%clk 0:02:52.6]} 7... b5 {[%clk 0:02:49]} 8. Ng3 {[%clk 0:02:52.5]} 8... a6
{[%clk 0:02:46.6]} 9. a4 {[%clk 0:02:52.2]} 9... b4 {[%clk 0:02:35.2]} 10. Nd2
{[%clk 0:02:46.8]} 10... Nbd7 {[%clk 0:02:32.9]} 11. Nc4 {[%clk 0:02:41.5]}
11... a5 {[%clk 0:02:28.1]} 12. Bf4 {[%clk 0:02:40.2]} 12... Nb6 {[%clk
0:02:26]} 13. Nxb6 {[%clk 0:02:35.9]} 13... Qxb6 {[%clk 0:02:26.9]} 14. e5
{[%clk 0:02:36.5]} 14... dxe5 {[%clk 0:02:21.1]} 15. Bxe5 {[%clk 0:02:37.4]}
15... Bg7 {[%clk 0:02:16.4]} 16. Bb5+ {[%clk 0:02:37.1]} 16... Bd7 {[%clk
0:01:51.1]} 17. Bxd7+ {[%clk 0:02:31.5]} 17... Kxd7 {[%clk 0:01:52]} 18. O-O
{[%clk 0:02:27]} 18... Rhe8 {[%clk 0:01:51.2]} 19. f4 {[%clk 0:02:24]} 19... Ke7
{[%clk 0:01:31.5]} 20. Qf3 {[%clk 0:01:06.5]} 20... Kf8 {[%clk 0:01:29.9]} 21.
Rad1 {[%clk 0:01:06.3]} 21... c4+ {[%clk 0:00:48.4]} 22. Kh1 {[%clk 0:01:06]}
22... Rad8 {[%clk 0:00:34.4]} 23. Rfe1 {[%clk 0:01:06.2]} 23... Qc5 {[%clk
0:00:25.7]} 24. d6 {[%clk 0:00:55.6]} 24... Nd7 {[%clk 0:00:21.6]} 25. Ne4
{[%clk 0:00:55.1]} 25... Qc6 {[%clk 0:00:19.2]} 26. Bxg7+ {[%clk 0:00:46.5]}
26... Kxg7 {[%clk 0:00:18.9]} 27. f5 {[%clk 0:00:46.4]} 27... Ne5 {[%clk
0:00:18.2]} 28. f6+ {[%clk 0:00:46.2]} 28... Kh8 {[%clk 0:00:18.2]} 29. Qf4
{[%clk 0:00:40.6]} 29... Nd7 {[%clk 0:00:13.4]} 30. Qh6 {[%clk 0:00:35]} 30...
Rg8 {[%clk 0:00:13.2]} 31. Ng5 {[%clk 0:00:35.2]} 31... Nxf6 {[%clk 0:00:09.7]}
32. Nxf7# {[%clk 0:00:35]} 1-0

[Event "*** SCC Grand Prix: Titled Tuesday Blitz"]
[Site "Chess.com"]
[Date "2020.09.08"]
[Round "9"]
[White "JesseKraai"]
[Black "kosya4ok"]
[Result "1-0"]
[WhiteElo "2529"]
[BlackElo "2668"]
[TimeControl "180+1"]
[EndTime "11:46:21 PDT"]
[Termination "JesseKraai won on time"]

1. Nf3 {[%clk 0:03:00.9]} 1... g6 {[%clk 0:02:55.1]} 2. e4 {[%clk 0:03:00.3]}
2... Bg7 {[%clk 0:02:56]} 3. d4 {[%clk 0:03:00.6]} 3... c5 {[%clk 0:02:55.1]} 4.
d5 {[%clk 0:03:00.1]} 4... d6 {[%clk 0:02:54.2]} 5. Nc3 {[%clk 0:03:00.2]} 5...
Nf6 {[%clk 0:02:48.8]} 6. Be2 {[%clk 0:02:59.4]} 6... O-O {[%clk 0:02:47.3]} 7.
O-O {[%clk 0:02:59.6]} 7... Na6 {[%clk 0:02:35.6]} 8. h3 {[%clk 0:02:58.8]} 8...
Nc7 {[%clk 0:02:33]} 9. a4 {[%clk 0:02:58.8]} 9... Rb8 {[%clk 0:02:29.7]} 10.
Bf4 {[%clk 0:02:57.2]} 10... Nd7 {[%clk 0:02:23.3]} 11. Re1 {[%clk 0:02:52.2]}
11... b6 {[%clk 0:02:15.1]} 12. Bf1 {[%clk 0:02:40.2]} 12... Bxc3 {[%clk
0:01:50.4]} 13. bxc3 {[%clk 0:02:39.5]} 13... f6 {[%clk 0:01:51.3]} 14. Nd2
{[%clk 0:02:15.9]} 14... a6 {[%clk 0:01:40.1]} 15. c4 {[%clk 0:02:15.1]} 15...
b5 {[%clk 0:01:36.6]} 16. axb5 {[%clk 0:02:12.4]} 16... axb5 {[%clk 0:01:37.5]}
17. cxb5 {[%clk 0:02:03.9]} 17... Nxb5 {[%clk 0:01:38.4]} 18. Nc4 {[%clk
0:02:01.6]} 18... g5 {[%clk 0:01:18.7]} 19. Bg3 {[%clk 0:01:58.3]} 19... Rf7
{[%clk 0:00:57.3]} 20. Na5 {[%clk 0:01:53.9]} 20... Qf8 {[%clk 0:00:33.4]} 21.
Nc6 {[%clk 0:01:51.7]} 21... Rb7 {[%clk 0:00:31.2]} 22. Bxb5 {[%clk 0:01:39.1]}
22... Rxb5 {[%clk 0:00:28.5]} 23. Ra8 {[%clk 0:01:38]} 23... Rb7 {[%clk
0:00:09.5]} 24. Qa1 {[%clk 0:01:27.4]} 24... h5 {[%clk 0:00:07.8]} 25. Rb1
{[%clk 0:01:25.2]} 25... Nb6 {[%clk 0:00:06.4]} 26. Ra6 {[%clk 0:01:11.2]} 26...
Nc4 {[%clk 0:00:03.3]} 27. Ra8 {[%clk 0:01:06.9]} 27... Nb6 {[%clk 0:00:02.1]}
28. Ra7 {[%clk 0:01:01.2]} 28... Rxa7 {[%clk 0:00:01.3]} 29. Qxa7 {[%clk
0:01:01.1]} 29... Nd7 {[%clk 0:00:01.8]} 30. Qc7 {[%clk 0:00:55.9]} 30... Ne5
{[%clk 0:00:01.5]} 31. Bxe5 {[%clk 0:00:51.9]} 31... fxe5 {[%clk 0:00:01.6]} 32.
Nd8 {[%clk 0:00:51.8]} 32... Rxf2 {[%clk 0:00:01.1]} 33. Qxc8 {[%clk 0:00:51]}
33... Rxc2 {[%clk 0:00:01.6]} 34. Qe6+ {[%clk 0:00:46.5]} 34... Kg7 {[%clk
0:00:01.3]} 35. Rf1 {[%clk 0:00:46.1]} 1-0

[Event "*** SCC Grand Prix: Titled Tuesday Blitz"]
[Site "Chess.com"]
[Date "2020.09.08"]
[Round "9"]
[White "aNaartjieZA"]
[Black "vinniethepooh"]
[Result "1-0"]
[WhiteElo "2494"]
[BlackElo "2630"]
[TimeControl "180+1"]
[EndTime "11:46:22 PDT"]
[Termination "aNaartjieZA won on time"]

1. e4 {[%clk 0:03:00.9]} 1... c5 {[%clk 0:02:58.8]} 2. Nf3 {[%clk 0:03:01]} 2...
d6 {[%clk 0:02:58.9]} 3. g3 {[%clk 0:03:01.1]} 3... Nf6 {[%clk 0:02:59]} 4. d3
{[%clk 0:03:01.4]} 4... Nc6 {[%clk 0:02:55.3]} 5. Bg2 {[%clk 0:03:01.9]} 5... e5
{[%clk 0:02:46.9]} 6. O-O {[%clk 0:03:00.4]} 6... Be7 {[%clk 0:02:44.4]} 7. c3
{[%clk 0:03:00.3]} 7... O-O {[%clk 0:02:42.1]} 8. a3 {[%clk 0:03:00.3]} 8... a5
{[%clk 0:02:39.1]} 9. a4 {[%clk 0:03:00.1]} 9... Bg4 {[%clk 0:02:36.1]} 10. h3
{[%clk 0:02:59.2]} 10... Bh5 {[%clk 0:02:36.2]} 11. Na3 {[%clk 0:02:58.4]} 11...
d5 {[%clk 0:02:32.6]} 12. exd5 {[%clk 0:02:57.6]} 12... Nxd5 {[%clk 0:02:33.5]}
13. Qb3 {[%clk 0:02:50]} 13... Qd7 {[%clk 0:01:58.5]} 14. Re1 {[%clk 0:02:37.9]}
14... Bxf3 {[%clk 0:01:41.6]} 15. Bxf3 {[%clk 0:02:36.1]} 15... Rfd8 {[%clk
0:01:41.5]} 16. Kg2 {[%clk 0:02:15.3]} 16... Bf6 {[%clk 0:01:24.3]} 17. Bd2
{[%clk 0:02:04.9]} 17... h6 {[%clk 0:01:09.9]} 18. Rad1 {[%clk 0:02:02.9]} 18...
Nde7 {[%clk 0:01:02.1]} 19. Be3 {[%clk 0:01:59.6]} 19... b6 {[%clk 0:00:42.1]}
20. Qxb6 {[%clk 0:01:55.1]} 20... Rab8 {[%clk 0:00:29.1]} 21. Qxc5 {[%clk
0:01:54.2]} 21... Rxb2 {[%clk 0:00:29]} 22. Nb5 {[%clk 0:01:50.6]} 22... Nd5
{[%clk 0:00:26.7]} 23. Bc1 {[%clk 0:01:44.8]} 23... Rc2 {[%clk 0:00:17.8]} 24.
Rd2 {[%clk 0:01:36.9]} 24... Rxd2 {[%clk 0:00:10.1]} 25. Bxd2 {[%clk 0:01:36.7]}
25... Nce7 {[%clk 0:00:05.5]} 26. c4 {[%clk 0:01:30.9]} 26... Nb4 {[%clk
0:00:05]} 27. Bxb4 {[%clk 0:01:30]} 27... axb4 {[%clk 0:00:05.9]} 28. Qxb4
{[%clk 0:01:29.6]} 28... Nf5 {[%clk 0:00:04.5]} 29. Be4 {[%clk 0:01:22.3]} 29...
Nd4 {[%clk 0:00:04.6]} 30. Nxd4 {[%clk 0:01:20.1]} 30... Qxd4 {[%clk 0:00:05.5]}
31. a5 {[%clk 0:01:16.2]} 31... Qa7 {[%clk 0:00:02.7]} 32. Rb1 {[%clk
0:01:10.8]} 32... Be7 {[%clk 0:00:02.2]} 33. Qb6 {[%clk 0:01:08.8]} 33... Qd7
{[%clk 0:00:01.8]} 34. a6 {[%clk 0:01:06.7]} 34... Qa4 {[%clk 0:00:01]} 35. a7
{[%clk 0:01:02.9]} 1-0

[Event "*** SCC Grand Prix: Titled Tuesday Blitz"]
[Site "Chess.com"]
[Date "2020.09.08"]
[Round "9"]
[White "Off-War"]
[Black "ViktoriyaTarasova"]
[Result "0-1"]
[WhiteElo "2636"]
[BlackElo "2272"]
[TimeControl "180+1"]
[EndTime "11:46:23 PDT"]
[Termination "ViktoriyaTarasova won by resignation"]

1. d4 {[%clk 0:02:34.1]} 1... Nf6 {[%clk 0:02:58.9]} 2. c4 {[%clk 0:02:34]} 2...
e6 {[%clk 0:02:58.7]} 3. Nf3 {[%clk 0:02:33.6]} 3... b6 {[%clk 0:02:58]} 4. a3
{[%clk 0:02:27.7]} 4... Bb7 {[%clk 0:02:55.4]} 5. Nc3 {[%clk 0:02:28.6]} 5... d5
{[%clk 0:02:53.1]} 6. cxd5 {[%clk 0:02:26.7]} 6... exd5 {[%clk 0:02:53]} 7. Bg5
{[%clk 0:02:26.1]} 7... Nbd7 {[%clk 0:02:50.2]} 8. e3 {[%clk 0:02:26.5]} 8... a6
{[%clk 0:02:47.5]} 9. Bd3 {[%clk 0:02:26.6]} 9... Bd6 {[%clk 0:02:47.2]} 10. O-O
{[%clk 0:02:26.4]} 10... O-O {[%clk 0:02:47]} 11. b4 {[%clk 0:02:25.4]} 11... h6
{[%clk 0:02:46.2]} 12. Bh4 {[%clk 0:02:25.8]} 12... Re8 {[%clk 0:02:45.5]} 13.
Qc2 {[%clk 0:02:25.1]} 13... Rc8 {[%clk 0:02:43.7]} 14. Rab1 {[%clk 0:02:23.8]}
14... Qe7 {[%clk 0:02:09.4]} 15. Bg3 {[%clk 0:02:11.4]} 15... Bxg3 {[%clk
0:02:07.7]} 16. hxg3 {[%clk 0:02:12.3]} 16... Ne4 {[%clk 0:02:06.3]} 17. a4
{[%clk 0:02:12.2]} 17... Ndf6 {[%clk 0:01:58.3]} 18. b5 {[%clk 0:02:08.7]} 18...
a5 {[%clk 0:01:57.3]} 19. Bxe4 {[%clk 0:02:07.5]} 19... Nxe4 {[%clk 0:01:55.8]}
20. Nxe4 {[%clk 0:02:07.1]} 20... dxe4 {[%clk 0:01:48.2]} 21. Ne5 {[%clk
0:02:06.8]} 21... Qe6 {[%clk 0:01:43.9]} 22. Rbc1 {[%clk 0:02:02.8]} 22... Bd5
{[%clk 0:01:42.9]} 23. Qd2 {[%clk 0:01:57.5]} 23... Red8 {[%clk 0:01:31.2]} 24.
Rc3 {[%clk 0:01:56.2]} 24... f6 {[%clk 0:01:28]} 25. Nc6 {[%clk 0:01:51.1]}
25... Bxc6 {[%clk 0:01:20.4]} 26. Rxc6 {[%clk 0:01:43.5]} 26... Rd6 {[%clk
0:01:14.6]} 27. Rc3 {[%clk 0:01:30.9]} 27... Qd7 {[%clk 0:01:04.2]} 28. Rfc1
{[%clk 0:01:29]} 28... c5 {[%clk 0:00:57.9]} 29. Qa2+ {[%clk 0:01:28.8]} 29...
Kh7 {[%clk 0:00:56.2]} 30. dxc5 {[%clk 0:01:24.5]} 30... bxc5 {[%clk 0:00:54.6]}
31. Qc2 {[%clk 0:01:18.7]} 31... f5 {[%clk 0:00:51.1]} 32. Kh2 {[%clk
0:01:11.1]} 32... Rd2 {[%clk 0:00:49.8]} 33. Qb3 {[%clk 0:01:06.9]} 33... Rxf2
{[%clk 0:00:47.5]} 34. b6 {[%clk 0:00:59.8]} 34... Qd2 {[%clk 0:00:34]} 35. Rg1
{[%clk 0:00:51.4]} 35... Qe2 {[%clk 0:00:32.1]} 36. Qf7 {[%clk 0:00:51.3]} 36...
Rf8 {[%clk 0:00:26.3]} 37. Re1 {[%clk 0:00:40.5]} 37... Rxf7 {[%clk 0:00:25.4]}
38. Rxe2 {[%clk 0:00:40.6]} 38... Rxe2 {[%clk 0:00:25.6]} 0-1

[Event "*** SCC Grand Prix: Titled Tuesday Blitz"]
[Site "Chess.com"]
[Date "2020.09.08"]
[Round "9"]
[White "beto-betun"]
[Black "champ1000"]
[Result "0-1"]
[WhiteElo "2143"]
[BlackElo "2300"]
[TimeControl "180+1"]
[EndTime "11:46:24 PDT"]
[Termination "champ1000 won on time"]

1. d4 {[%clk 0:03:00.9]} 1... Nf6 {[%clk 0:02:52.2]} 2. c4 {[%clk 0:02:58.9]}
2... e6 {[%clk 0:02:52.6]} 3. Nf3 {[%clk 0:02:58.6]} 3... d5 {[%clk 0:02:52.7]}
4. g3 {[%clk 0:02:57.7]} 4... Bb4+ {[%clk 0:02:49.1]} 5. Bd2 {[%clk 0:02:57.8]}
5... Bd6 {[%clk 0:02:49.4]} 6. Bg2 {[%clk 0:02:47.6]} 6... c6 {[%clk 0:02:42]}
7. b3 {[%clk 0:02:36]} 7... Ne4 {[%clk 0:02:40.2]} 8. O-O {[%clk 0:02:34.4]}
8... Nd7 {[%clk 0:02:36.9]} 9. Bf4 {[%clk 0:02:27]} 9... Bxf4 {[%clk 0:02:36.2]}
10. gxf4 {[%clk 0:02:27.6]} 10... O-O {[%clk 0:02:32.5]} 11. Qc2 {[%clk
0:02:16.2]} 11... f5 {[%clk 0:02:30.8]} 12. Nbd2 {[%clk 0:02:07.3]} 12... Ndf6
{[%clk 0:02:25.1]} 13. Ne5 {[%clk 0:02:05.2]} 13... Bd7 {[%clk 0:02:22.4]} 14.
Nxe4 {[%clk 0:01:54.4]} 14... Nxe4 {[%clk 0:02:18.7]} 15. f3 {[%clk 0:01:46.8]}
15... Nf6 {[%clk 0:02:14]} 16. Kf2 {[%clk 0:01:46.7]} 16... Nh5 {[%clk
0:02:11.9]} 17. e3 {[%clk 0:01:27.6]} 17... Qh4+ {[%clk 0:02:08.4]} 18. Ke2
{[%clk 0:01:23]} 18... Rad8 {[%clk 0:01:36.2]} 19. Kd3 {[%clk 0:01:15.3]} 19...
b6 {[%clk 0:01:16.5]} 20. Rf2 {[%clk 0:01:00.4]} 20... c5 {[%clk 0:01:14.9]} 21.
Kc3 {[%clk 0:00:47.2]} 21... cxd4+ {[%clk 0:01:10.5]} 22. exd4 {[%clk
0:00:41.6]} 22... Nxf4 {[%clk 0:01:04.1]} 23. Rg1 {[%clk 0:00:34.8]} 23... dxc4
{[%clk 0:01:01]} 24. bxc4 {[%clk 0:00:31]} 24... Ba4 {[%clk 0:00:46.7]} 25. Qxa4
{[%clk 0:00:27]} 25... Qxf2 {[%clk 0:00:45.8]} 26. Rd1 {[%clk 0:00:15.1]} 26...
Ne2+ {[%clk 0:00:35.3]} 27. Kb4 {[%clk 0:00:10.4]} 27... Nxd4 {[%clk 0:00:32.4]}
28. Bf1 {[%clk 0:00:04.7]} 28... Qb2+ {[%clk 0:00:32.2]} 0-1